Cogmind - Beta 16 @@@ ROGUE MODE // 2026.02.09 @ 12:52:10 Player: shapeshifter Result: Escaped! Performance ------------- Evolutions (9) 4500 Regions Visited (21) 4200 Robots Destroyed (98) 490 Value Destroyed (4133) 4133 Prototype IDs (52) 1040 Alien Tech Used (2) 400 Bonus (11333) 11333 TOTAL SCORE: 26096 Bonus ------- Pacifist 200 High Alert Combat Kills 231 Follower Combat Kills 6020 Destroyed Unchained 1000 Network Hubs Disabled 800 Registered with UFD 300 Met Zhirov 300 Built Enhanced Grunts 300 Met R17 at Cetus 500 Met R17 at Research 2000 Win 3000 Friendly Fire -3318 Cogmind --------- Core Integrity 385/1600 Matter 228/300 Energy 84/100 System Corruption 21% Temperature Cool (0) Movement Core (300) Ox5 Location To Epsilon Eridani Parts ------- > --- POWER (3) -------- Improved Fusion Compressor > --- PROPULSION (8) --- (None) > --- UTILITY (12) ----- Advanced Signal Interpreter Advanced ECM Suite Advanced Hacking Suite Advanced System Shield > --- WEAPON (2) ------- IN-MT5's Pitchfork "Insurrection" > --- INVENTORY (5) ---- (None) Peak State ------------ > --- POWER ------------ Micro Antimatter Reactor Light Quantum Reactor > --- PROPULSION ------- Q-thruster Impulse Thruster Array Impulse Thruster Array Improved Q-thruster > --- UTILITY ---------- Advanced Sensor Array Advanced Signal Interpreter Long-range Terrain Scanner Advanced Terrain Scan Processor Advanced Reaction Control System Graphene Brace Hacking Suite Hacking Suite Advanced Hacking Suite Advanced System Shield Authchip [Weapon] > --- WEAPON ----------- Nanosword Nanosword > --- INVENTORY -------- Particle Reactor Enhanced Nova Cannon IN-MT5's Pitchfork "Insurrection" IN-MT5's Pitchfork "Insurrection" [Rating: 144] Favorites ----------- Power Improved Ion Engine Engine Improved Ion Engine Power Core Fusion Compressor Reactor Light Antimatter Reactor Propulsion VTOL Module Treads Enhanced Armored Heavy Treads Leg Improved Aluminum Leg Hover Unit Cooled Gravmag System Flight Unit VTOL Module Utility Improved Hacking Suite Device Graphene Brace Storage Small Storage Unit Processor Machine Analyzer Hackware Improved Hacking Suite Protection Light Armor Plating Weapon Maul Energy Cannon Enhanced Nova Cannon Ballistic Gun DW-4LL's Megashotty Ballistic Cannon Hypervelocity Gauss Cannon Launcher Neutron Missile Launcher Special Weapon Improved Remote Datajack Impact Weapon Maul Slashing Weapon Great Axe Build | -11 -10 -9 -9 -9 -9 -6 -6 -6 -6 -6 -5 -4 -4 -4 -4 -3 -3 -3 -3 -2 -1 ------- Run | Yrd Mat Mat Sto Rec Scr Fac Ext Cet Arc Hub Fac Fac Upp Upp Zhi Pro Res Arm Lab Res Acc Slots Evolved 18 | . . 2 . . . 6 . . . . 2 2 . . . . 2 . . 2 2 Power 2 | . . . . . . . . . . . . . . . . . 1 . . 1 . Propulsion 6 | . . . . . . 3 . . . . 1 1 . . . . . . . . 1 Utility 10 | . . 2 . . . 3 . . . . 1 1 . . . . 1 . . 1 1 Weapon . | . . . . . . . . . . . . . . . . . . . . . . Parts Attached 197 | 4 . 1 12 4 14 4 24 4 9 6 13 24 1 . 9 . 9 8 2 9 40 Power 22 | 1 . . 2 . 2 1 3 . 1 . 1 2 . . 1 . 2 . . . 6 Engine 8 | 1 . . 2 . 2 . 1 . 1 . 1 . . . . . . . . . . Core 4 | . . . . . . 1 . . . . . 1 . . . . . . . . 2 Reactor 10 | . . . . . . . 2 . . . . 1 . . 1 . 2 . . . 4 Propulsion 55 | 2 . . 1 . 6 1 7 1 . 2 4 5 . . 3 . 3 3 1 4 12 Treads 4 | . . . . . . . . . . . . . . . . . . . 1 2 1 Leg 10 | 2 . . 1 . 1 . . . . . . . . . . . . . . . 6 Wheel . | . . . . . . . . . . . . . . . . . . . . . . Hover 7 | . . . . . . 1 . . . . 1 . . . 3 . . . . . 2 Flight 34 | . . . . . 5 . 7 1 . 2 3 5 . . . . 3 3 . 2 3 Utility 93 | 1 . 1 8 2 4 2 10 2 8 2 8 12 1 . 4 . 4 3 . 4 17 Device 35 | . . 1 3 . 3 . 3 . 4 . 3 9 1 . . . 1 1 . . 6 Storage 6 | 1 . . . 1 . . . . . . . . . . 2 . 2 . . . . Processor 9 | . . . . . . 1 1 . . 1 . . . . . . 1 . . 1 4 Hackware 28 | . . . 1 . . 1 3 . 3 1 4 3 . . 1 . . 2 . 2 7 Protection 15 | . . . 4 1 1 . 3 2 1 . 1 . . . 1 . . . . 1 . Artifact . | . . . . . . . . . . . . . . . . . . . . . . Weapon 27 | . . . 1 2 2 . 4 1 . 2 . 5 . . 1 . . 2 1 1 5 Energy Gun . | . . . . . . . . . . . . . . . . . . . . . . Energy Cannon 3 | . . . . . . . . . . . . . . . . . . . 1 1 1 Ballistic Gun 1 | . . . . . . . . . . . . 1 . . . . . . . . . Ballistic Cannon 2 | . . . . . . . . . . . . 1 . . . . . 1 . . . Launcher 1 | . . . . . . . . . . . . 1 . . . . . . . . . Special Weapon 4 | . . . . . . . . . . . . 1 . . 1 . . 1 . . 1 Impact Weapon 6 | . . . 1 2 1 . 2 . . . . . . . . . . . . . . Slashing Weapon 10 | . . . . . 1 . 2 1 . 2 . 1 . . . . . . . . 3 Piercing Weapon . | . . . . . . . . . . . . . . . . . . . . . . Special Melee Weapon . | . . . . . . . . . . . . . . . . . . . . . . Unidentified Prototypes 23 | . . . . . 1 . . 1 . 1 2 5 . . 5 . 1 1 . 3 3 Corrupted Parts 4 | . . . . . . 1 3 . . . . . . . . . . . . . . System Corruption 18 | . . . . . . 4 14 . . . . . . . . . . . . . . Parts Lost 81 | . . . 1 1 3 . 8 1 . 8 6 3 . 1 . . 2 7 . 8 32 Power 6 | . . . 1 . . . . . . . . . . . . . . . . 3 2 Propulsion 34 | . . . . 1 1 . 5 . . 5 1 . . 1 . . 1 5 . 2 12 Utility 34 | . . . . . 2 . 2 . . 2 5 3 . . . . 1 2 . 2 15 Weapon 7 | . . . . . . . 1 1 . 1 . . . . . . . . . 1 3 Highest Loss Streak 12 | . . . 1 1 3 . 5 1 . 5 5 1 . 1 . . 2 7 . 5 12 To Critical Strikes 1 | . . . . . . . . . . . . . . . . . . . . . 1 Average Backups 8 | 2 3 4 7 9 13 4 6 7 7 7 4 4 3 4 4 3 8 13 10 10 4 Power . | 1 2 1 . . . . . 1 . . . . . . . . . . . . 1 Propulsion 1 | . . 1 3 4 3 . . . . . . . 1 1 1 1 2 2 . . . Utility 4 | . 1 2 3 5 10 3 4 4 5 6 3 1 . 1 . . 1 4 6 4 . Weapon 1 | . . . . . . . 1 1 1 1 . 1 2 2 2 1 3 4 3 3 2 Tool/Special . | . . . . . . . . . . . . . . . . . . . . . . Unused Backups 34 | 2 . . 2 . 7 . 1 2 4 . 6 5 . . . . 1 1 . 2 1 Power 1 | . . . . . . . . . 1 . . . . . . . . . . . . Propulsion 6 | 2 . . . . . . 1 . . . . 3 . . . . . . . . . Utility 24 | . . . 1 . 7 . . 2 3 . 6 1 . . . . . 1 . 2 1 Weapon 2 | . . . . . . . . . . . . 1 . . . . 1 . . . . Tool/Special 1 | . . . 1 . . . . . . . . . . . . . . . . . . Average Slot Usage (%) 81 | . 28 25 79 90 95 54 90 89 91 82 70 88 94 90 83 94 76 69 32 36 44 Engine 4 | . . . 10 11 10 . 1 . 2 4 3 . . . . . . . . 1 . Reactor 1 | . . . . . . . . 6 3 . . 2 . . 2 5 5 8 1 1 1 Leg 7 | . 28 22 22 14 15 . . . . . . . . . . . . . . . 7 Flight 14 | . . . . . 2 25 31 33 33 23 21 29 31 27 18 15 18 18 4 . 4 Device 5 | . . 3 6 . 1 . 7 6 4 . 1 12 15 15 12 10 10 13 4 4 5 Storage 5 | . . . 8 11 10 5 6 6 6 6 . . . . 1 5 6 7 4 3 . Processor 2 | . . . . . . 2 9 6 6 7 1 . . . . . 1 . . . 5 Hackware 14 | . . . 4 11 10 . 10 20 24 31 29 22 21 21 23 26 21 17 9 8 12 Protection 10 | . . . 18 22 20 . 4 5 1 . 7 9 10 10 8 5 4 2 . 2 . Impact Weapon 6 | . . . 7 21 13 13 8 . . . . . . . . . . . . . . Slashing Weapon 2 | . . . . . 8 . 2 3 6 7 . 1 . . . . . . . . 4 Peak Build Rating 144 | 4 2 3 14 18 25 34 57 58 58 58 75 125 127 127 131 131 142 141 84 106 144 Average Rating 57 | 1 2 2 11 15 22 26 47 55 54 49 65 114 126 122 110 131 130 124 79 81 89 On Entrance 58 | . 2 2 3 13 18 14 34 53 58 55 38 75 125 127 120 131 131 133 42 84 35 Avg Prop Armor Cover (%) 19 | 38 38 37 24 . . 6 6 . . . 8 . . . 9 9 9 . 4 13 40 Naked Turns . | . . . . . . . . . . . . . . . . . . . . . . Heaviest Build 67 | 8 . 1 22 38 40 16 31 27 27 20 25 44 44 44 48 48 67 66 52 62 34 Greatest Support 160 | 20 3 3 23 23 31 20 32 32 32 23 34 57 47 47 48 48 58 58 70 150 160 Greatest Overweight (x) 5 | . . . 2 2 3 . 1 . 1 1 . . . 1 2 . 3 1 . . 5 Average Overweight (x) . | . . . . . . . . . . . . . . . . . . . . . . Largest Inventory Capacity 15 | 8 5 5 8 15 15 8 8 8 8 8 8 5 5 5 5 5 15 15 15 15 5 Average Capacity 9 | 6 5 5 7 10 13 7 8 8 8 8 5 5 5 5 5 5 10 15 15 14 5 Most Carried 15 | 5 4 5 8 15 15 7 8 8 8 8 8 5 5 5 5 4 15 15 12 13 5 Average Carried 8 | 2 3 4 7 9 13 5 7 7 7 7 5 4 4 4 4 4 9 14 9 10 4 Final Capacity 15 | 5 5 5 8 15 8 8 8 8 8 8 5 5 5 5 5 5 15 15 15 5 5 Final Carried 15 | 3 4 5 8 15 7 7 8 8 8 8 5 5 5 5 4 4 15 14 9 4 5 Class Distribution -------------------- 37% | Mutant 15% | Commander-Sprinter 10% | Hacker-Mutant 7% | Hacker-Sprinter 7% | Scavenger-Sprinter 6% | Wizard-Sprinter 6% | Commander-Mutant Dominant Class ---------------- Mutant | -10/Materials Mutant | -9/Materials Mutant | -9/Storage Mutant | -9/Recycling Mutant | -9/Scraptown Sprinter | -6/Factory Commander-Sprinter | -6/Extension Commander-Sprinter | -6/Cetus Commander-Sprinter | -6/Archives Commander-Sprinter | -6/Hub_04(d) Wizard-Sprinter | -5/Factory Hacker-Sprinter | -4/Factory Scavenger-Sprinter | -4/Upper Caves Scavenger-Mutant | -4/Upper Caves Scavenger-Mutant | -4/Zhirov Wizard-Sprinter | -3/Proximity Caves Wizard-Sprinter | -3/Research Hacker-Sprinter | -3/Armory Hacker-Sprinter | -3/Lab Hacker-Mutant | -2/Research Hacker-Mutant | -1/Access Resources | -11 -10 -9 -9 -9 -9 -6 -6 -6 -6 -6 -5 -4 -4 -4 -4 -3 -3 -3 -3 -2 -1 ----------- Run | Yrd Mat Mat Sto Rec Scr Fac Ext Cet Arc Hub Fac Fac Upp Upp Zhi Pro Res Arm Lab Res Acc Matter Collected 6464 | 185 . . 191 30 210 13 399 130 157 40 22 1714 1157 255 176 31 877 52 . 253 572 Remotely . | . . . . . . . . . . . . . . . . . . . . . . Salvage Created 4721 | . . . 352 412 . 13 1102 . 325 111 . 933 340 . . . 207 297 . 125 504 Parts 184 | . . . 18 14 . . 25 . 23 6 . 44 11 . . . . 13 . 7 23 Haulers Intercepted 15 | . . . 5 . . . 4 . . . . 2 . . . . 2 . . . 2 Recyclers Shooed 2 | . . . . . . . . . . . . . . . . . 1 . . . 1 Parts Field Recycled . | . . . . . . . . . . . . . . . . . . . . . . Retrieved Matter . | . . . . . . . . . . . . . . . . . . . . . . Parts Self-Destructed 26 | . . . . . . . . . . . . . 23 3 . . . . . . . Prevented 1 | . . . . . . . . . . . . . . 1 . . . . . . . Parts Restored . | . . . . . . . . . . . . . . . . . . . . . . Kills | -11 -10 -9 -9 -9 -9 -6 -6 -6 -6 -6 -5 -4 -4 -4 -4 -3 -3 -3 -3 -2 -1 ------- Run | Yrd Mat Mat Sto Rec Scr Fac Ext Cet Arc Hub Fac Fac Upp Upp Zhi Pro Res Arm Lab Res Acc Combat Hostiles Destroyed 48 | . . . 1 4 . . 6 . . 1 . 11 5 1 . . . 6 . 9 4 Melee 10 | . . . 1 2 . . 2 . . 1 . . . . . . . . . . 4 Guns 6 | . . . . . . . . . . . . . . 1 . . . 1 . 4 . Cannons 15 | . . . . . . . . . . . . 11 3 . . . . . . 1 . AOE 10 | . . . . . . . . . . . . . 2 . . . . 5 . 3 . Classes Destroyed 15 | . . . 5 1 . . 3 . . . . 3 1 1 . . . 1 . . . Worker 2 | . . . 1 . . . . . . . . 1 . . . . . . . . . Builder 3 | . . . . . . . 2 . . . . . . . . . . . . 1 . Hauler 15 | . . . 5 . . . 4 . . . . 2 . . . . 2 . . . 2 Recycler 8 | . . . . 3 . . 3 . . . . 1 . . . . 1 . . . . Minesweeper 1 | . . . . . . . . . . . . . . 1 . . . . . . . Operator 16 | . . . 2 . . 1 . . 9 2 . . . . . . 1 . . . 1 Watcher 4 | . . . 1 . . . 1 . . . . 2 . . . . . . . . . Swarmer 9 | . . . . . . . 2 . . . . 4 . . . . . . . 3 . Saboteur 1 | . . . . . . . . . . . . . . . . . . 1 . . . Grunt 12 | . . . . . . . 1 . . 1 . 1 4 . . . . 5 . . . Duelist 1 | . . . . . . . . . . . . . 1 . . . . . . . . Sentry 10 | . . . 1 4 . . 3 . . . . . . 1 . . . . . 1 . Hunter 7 | . . . . . . . . . . . . 4 . . . . . . . 2 1 Programmer 7 | . . . . . . . . . . . . 1 . . . . . . . 3 3 Heavy 1 | . . . . . . . . . . . . 1 . . . . . . . . . Best Kill Streak 6 | . . . 1 1 . 1 2 . 3 2 . 6 3 1 . . 1 6 . 4 2 Combat Bots Only 6 | . . . 1 1 . . 1 . . 1 . 6 3 1 . . . 6 . 4 2 Max Kills in Single Turn 5 | . . . 1 1 . 1 1 . 1 1 . 1 2 1 . . 1 5 . 2 1 Gunslinging . | . . . . . . . . . . . . . . . . . . . . . . Exploded 5 | . . . . . . . . . . . . . 2 . . . . 5 . 2 . Melee 1 | . . . 1 1 . . 1 . . 1 . . . . . . . . . . 1 Uniques/NPCs Destroyed 2 | . . . . . . . . . . . . 1 . . . . 1 . . . . DW-4LL (-4/Factory) Revision 17++ (-3/Research) Combat | -11 -10 -9 -9 -9 -9 -6 -6 -6 -6 -6 -5 -4 -4 -4 -4 -3 -3 -3 -3 -2 -1 -------- Run | Yrd Mat Mat Sto Rec Scr Fac Ext Cet Arc Hub Fac Fac Upp Upp Zhi Pro Res Arm Lab Res Acc Hostile Shots Fired 1454 | . . 7 49 18 74 4 151 . . 80 62 117 27 8 . 8 14 144 . 224 467 Missed 615 | . . 4 20 5 41 . 58 . . 47 37 75 16 2 . 4 10 76 . 51 169 Hits 839 | . . 3 29 13 33 4 93 . . 33 25 42 11 6 . 4 4 68 . 173 298 Melee 26 | . . . . . 4 . . . . . 1 . . . . . . 16 . . 5 Projectile 813 | . . 3 29 13 29 4 93 . . 33 24 42 11 6 . 4 4 52 . 173 293 AOE 3 | . . . . . . . . . . . . 2 . . . . . . . . 1 Critical Strikes 34 | . . 1 1 1 3 . 1 2 1 3 . . . . . . . 5 . 6 10 Actively Blocked 13 | . . . . . . . . . . . . . . . . . . 5 . 6 2 Part Disruptions 2 | . . . . . . . . . . . . . . . . . . 1 . . 1 Damage Taken 17224 | . . 39 457 192 529 57 796 103 22 848 517 953 254 148 . 95 133 1091 . 3990 7000 Core 3701 | . . 14 100 14 219 38 120 14 22 552 133 66 17 . . . 24 236 . 917 1215 Absorbed by Shields 55 | . . . . . . . 18 27 . . 10 . . . . . . . . . . Reduced by Siege Mode 251 | . . . . . . . . . . . . . . . . . . . . 251 . Core Remaining (%) 59 | 100 100 . . . 13 . . . . 12 86 . . . . 92 . . 72 36 24 Volleys Fired 223 | . . . . . . . . . . . . 91 43 9 . . 19 8 . 47 6 Largest 2 | . . . . . . . . . . . . 2 2 2 . . 1 1 . 2 1 Hottest 145 | . . . . . . . . . . . . 76 76 76 . . 25 51 . 145 120 Shots Fired 244 | . . . . . . . . . . . . 97 47 17 . . 19 8 . 50 6 Gun 73 | . . . . . . . . . . . . 7 7 8 . . 19 1 . 31 . Cannon 157 | . . . . . . . . . . . . 89 39 9 . . . 4 . 14 2 Launcher 7 | . . . . . . . . . . . . . 1 . . . . 1 . 5 . Special 7 | . . . . . . . . . . . . 1 . . . . . 2 . . 4 Kinetic 141 | . . . . . . . . . . . . 89 39 9 . . . 4 . . . Thermal 14 | . . . . . . . . . . . . . . . . . . . . 12 2 Explosive 7 | . . . . . . . . . . . . . 1 . . . . 1 . 5 . Electromagnetic 2 | . . . . . . . . . . . . . . . . . . . . 2 . Impact 73 | . . . . . . . . . . . . 7 7 8 . . 19 1 . 31 . Piercing 4 | . . . . . . . . . . . . . . . . . . . . . 4 Robot Hit Streak 32 | . . . . . . . . . . . . 20 8 19 . . 32 2 . 29 3 Robot Miss Streak 5 | . . . . . . . . . . . . 5 4 2 . . 4 3 . 4 2 Penetration Max 1 | . . . . . . . . . . . . 1 1 . . . . . . . . Secondary Targets . | . . . . . . . . . . . . . . . . . . . . . . Shots Hit Robots 312 | . . . 25 19 . 1 56 1 19 7 . 58 26 14 . . 19 3 . 36 28 Core Hits 158 | . . . 6 3 . . 8 . 4 3 . 37 10 8 . . 14 11 . 43 11 Critical Kills 20 | . . . 2 1 . . 1 . . . . 14 2 . . . . . . . . Critical Parts Destroyed 41 | . . . 1 2 . . 8 . . . . 17 11 2 . . . . . . . Critical Strikes 75 | . . . 4 3 . . 10 . 2 . . 33 14 2 . . . . . . 7 Destroy 49 | . . . . . . . . . . . . 33 14 2 . . . . . . . Smash 17 | . . . 4 3 . . 10 . . . . . . . . . . . . . . Sever 5 | . . . . . . . . . 2 . . . . . . . . . . . 3 Impale 4 | . . . . . . . . . . . . . . . . . . . . . 4 Melee Attacks 251 | . . . 41 23 3 8 78 6 31 16 . 1 . . . . . . . . 44 Impact 142 | . . . 41 23 3 8 67 . . . . . . . . . . . . . . Slashing 109 | . . . . . . . 11 6 31 16 . 1 . . . . . . . . 44 Piercing . | . . . . . . . . . . . . . . . . . . . . . . Sneak Attacks 53 | . . . 10 10 . . 14 1 12 1 . 1 . . . . . . . . 4 Combat Hostiles 4 | . . . . . . . 1 . . . . 1 . . . . . . . . 2 Follow-up Attacks 16 | . . . . 3 . . 9 . . . . . . . . . . . . . 4 Damage Inflicted 16269 | . . . 866 787 . 49 3080 82 1533 562 . 1324 1010 554 . . 1529 584 . 2454 1855 Guns 4544 | . . . . . . . . . . . . 366 526 455 . . 1529 8 . 1660 . Cannons 1506 | . . . . . . . . . . . . 897 286 99 . . . . . 224 . Explosions 1528 | . . . . . . . . . . 184 . . 198 . . . . 576 . 570 . Melee 8583 | . . . 865 787 . 49 3080 82 1533 375 . 61 . . . . . . . . 1751 Ramming 49 | . . . 1 . . . . . . 3 . . . . . . . . . . 45 Kinetic 1282 | . . . . . . . . . . . . 897 286 99 . . . . . . . Thermal 224 | . . . . . . . . . . . . . . . . . . . . 224 . Explosive 1344 | . . . . . . . . . . . . . 198 . . . . 576 . 570 . Electromagnetic 184 | . . . . . . . . . . 184 . . . . . . . . . . . Impact 8956 | . . . 865 787 . 49 2711 . . . . 366 526 455 . . 1529 8 . 1660 . Slashing 4171 | . . . . . . . 369 82 1533 375 . 61 . . . . . . . . 1751 Piercing 59 | . . . . . . . . . . . . . . . . . . . . . 59 Highest Corruption 25 | . . . . . . 4 18 18 18 11 25 3 3 3 3 3 . 1 1 17 21 Average Corruption 9 | . . . . . . 4 9 18 9 8 20 3 3 3 3 3 . 1 1 6 14 Corruption Purged 18 | . . . . . . . . . 18 . . . . . . . . . . . . Corruption Blocked . | . . . . . . . . . . . . . . . . . . . . . . Effects 150 | . . . . . . 4 36 30 11 3 19 7 7 5 3 1 . . . 2 22 Message Errors 32 | . . . . . . 3 8 3 5 . 3 2 2 2 1 . . . . 1 2 Matter Fused 39 | . . . . . . . 14 11 3 . 2 2 2 . . . . . . . 5 Heat Flow Errors 24 | . . . . . . . 6 9 . 1 2 1 1 . . 1 . . . . 3 Energy Discharges 16 | . . . . . . . 3 3 1 . 3 1 . 2 1 . . . . . 2 Parts Rejected 3 | . . . . . . . . 1 . . . . . . . . . . . . 2 Parts Fused 2 | . . . . . . . 1 . . . . . . 1 . . . . . . . Data Loss (minor) 9 | . . . . . . . 2 . 1 . 1 . 1 . 1 . . . . . 3 Data Loss (major) 9 | . . . . . . 1 2 2 . . 2 . . . . . . . . 1 1 Alerts 1 | . . . . . . . . 1 . . . . . . . . . . . . . Misdirections 13 | . . . . . . . . . 1 2 6 . . . . . . . . . 4 Weapon Failures 2 | . . . . . . . . . . . . 1 1 . . . . . . . . Overload Shots . | . . . . . . . . . . . . . . . . . . . . . . Overflow Damage 2102 | . . . 88 181 . 39 787 . 640 164 . . . . . . . . . 40 163 Projectiles 30 | . . . . . . . . . . . . . . . . . . . . 30 . Explosions 103 | . . . . . . . . . . 93 . . . . . . . . . 10 . Melee 1969 | . . . 88 181 . 39 787 . 640 71 . . . . . . . . . . 163 Knockbacks 41 | . . . 1 2 . . 8 . . . . 9 3 2 . . 12 . . 4 . Impact 29 | . . . 1 2 . . 8 . . . . . . 2 . . 12 . . 4 . Kinetic 12 | . . . . . . . . . . . . 9 3 . . . . . . . . Secondary . | . . . . . . . . . . . . . . . . . . . . . . Self-Inflicted Damage 188 | . . . . . . . . . . 110 . . . . . . . . . 68 10 Shots 2 | . . . . . . . . . . 1 . . . . . . . . . 1 . Rammed 5 | . . . . . . . . . . 2 . . . . . . . . . . 3 Targets Rammed 22 | . . . 1 . . . . . . 2 . . . . . . . . . . 19 Kicked 17 | . . . 1 . . . . . . . . . . . . . . . . . 16 Crushed . | . . . . . . . . . . . . . . . . . . . . . . Highest Temperature 464 | . . . 12 13 14 . 264 272 . 91 304 464 103 20 . 166 . . . 4 311 Average Temperature 83 | . . . 12 13 6 . 93 122 . 54 86 81 13 8 . 88 . . . 2 123 Received Heat Transfer 1872 | . . 42 204 72 60 27 249 . . 93 102 84 54 27 . . . 147 . 135 576 Effects 1 | . . . . . . . . . . . . 1 . . . . . . . . . Shutdowns 1 | . . . . . . . . . . . . 1 . . . . . . . . . Siege Activations 2 | . . . . . . . . . . . . . . . . . . . . 2 . Total Turns 64 | . . . . . . . . . . . . . . . . . . . . 64 . Longest Duration 35 | . . . . . . . . . . . . . . . . . . . . 35 . Martial Activations . | . . . . . . . . . . . . . . . . . . . . . . Shielding Activations . | . . . . . . . . . . . . . . . . . . . . . . Robots Disrupted . | . . . . . . . . . . . . . . . . . . . . . . Combat Hostiles . | . . . . . . . . . . . . . . . . . . . . . . Robots Corrupted 22 | . . . 5 3 . 1 7 . . . . . . 1 . . 4 . . 1 . Combat Hostiles 7 | . . . . 2 . . 4 . . . . . . . . . . . . 1 . Parts Fried 18 | . . . 4 4 . 2 7 . . 1 . . . . . . . . . . . Impact Corruptions 51 | . . . 6 9 . 2 17 . . . . . 1 2 . . 11 . . 3 . Robots Melted . | . . . . . . . . . . . . . . . . . . . . . . Combat Hostiles . | . . . . . . . . . . . . . . . . . . . . . . Parts Melted 2 | . . . . 2 . . . . . . . . . . . . . . . . . Heat Transferred 185 | . . . . . . . . . . . . . . . . . . . . 185 . Parts Sabotaged 6 | . . . . . . . . . . . . . . . . . . 6 . . . Parts Stolen . | . . . . . . . . . . . . . . . . . . . . . . Parts Stripped . | . . . . . . . . . . . . . . . . . . . . . . Power Chain Reactions 1 | . . . . . . . . . . 1 . . . . . . . . . . . Alert | -11 -10 -9 -9 -9 -9 -6 -6 -6 -6 -6 -5 -4 -4 -4 -4 -3 -3 -3 -3 -2 -1 ------- Run | Yrd Mat Mat Sto Rec Scr Fac Ext Cet Arc Hub Fac Fac Upp Upp Zhi Pro Res Arm Lab Res Acc Maximum Alert Level 4 | . . . 1 . . . 4 3 2 3 2 3 . . . . 1 1 . 1 1 Low Security (%) 53 | 100 100 100 74 100 . 100 21 . . 10 . 15 . . . . 94 88 . 70 87 Level 1 22 | . . . 25 . . . 31 . 99 7 51 21 . . . . 5 11 . 29 12 Level 2 14 | . . . . . . . 12 98 . 33 48 22 . . . . . . . . . Level 3 8 | . . . . . . . 20 1 . 48 . 40 . . . . . . . . . Level 4 2 | . . . . . . . 14 . . . . . . . . . . . . . . Level 5 . | . . . . . . . . . . . . . . . . . . . . . . High Security . | . . . . . . . . . . . . . . . . . . . . . . Max Security . | . . . . . . . . . . . . . . . . . . . . . . Peak Influence 1235 | . 15 . 255 75 . 60 1235 706 409 1004 550 1031 . . . . 242 350 . 324 257 Initial 672 | . . . . 54 . . 29 672 229 70 481 161 . . . . 180 63 . . 162 Average 285 | . 6 . 151 16 . 4 534 637 308 665 378 576 . . . . 152 129 . 86 143 Influence Increases 10694 | . 15 . 763 243 . 99 1786 358 270 1644 474 1900 371 25 . 45 477 720 . 504 1000 Destroy 0b10 Robot/C 4160 | . . . 380 80 . . 800 160 60 600 120 920 280 20 . . 140 180 . 180 240 Destroy 0b10 Robot/NC 320 | . . . 50 15 . 5 55 10 45 30 5 55 . 5 . . 20 . . 5 20 Destroy Leader 724 | . . . 132 . . . 84 . . 122 10 196 30 . . . 24 20 . 30 76 Allied During Kill 2169 | . . . 133 4 . . 703 170 105 368 6 565 61 . . . 29 9 . . 16 Successful Hack 609 | . . . 38 24 . 30 83 . . . 18 42 . . . . 54 79 . 52 189 Select Force Hacks 270 | . . . . 120 . . . . . 150 . . . . . . . . . . . Disable Machine 390 | . . . 30 . . . 15 . 60 135 . 15 . . . . . 75 . 30 30 Destroy Structure 342 | . . . . . . 4 1 18 . 104 . 2 . . . . . 12 . 177 24 Advance Influence 150 | . . . . . . . . . . . . . . . . . 150 . . . . Partial Spotted 270 | . 15 . . . . . 15 . . 45 15 30 . . . . 15 60 . . 75 Lose Combat Pursuer 1290 | . . . . . . 60 30 . . 90 300 75 . . . 45 45 285 . 30 330 Influence Decreases 10655 | . 15 . 622 384 . 39 645 985 643 861 1129 1216 653 370 386 . 401 541 300 233 1232 Entered New Map 3177 | . . . . 87 . . 31 529 345 131 503 168 375 140 386 . 15 58 300 . 109 Time Decay 3759 | . 15 . 402 287 . 39 474 286 278 110 206 368 198 180 . . 246 150 . 158 362 Search Patrol Dispatched 100 | . . . . . . . . . . . . . . . . . . . . . 100 Lost Part 770 | . . . 10 10 . . 80 10 . 80 60 30 . 10 . . 20 70 . 75 315 Lost Ally 2270 | . . . 210 . . . 60 160 20 540 60 650 80 40 . . 120 130 . . 200 Purge Threat 579 | . . . . . . . . . . . 300 . . . . . . 133 . . 146 Squads Dispatched 54 | . 1 2 4 . . 2 1 . . 14 5 9 . . . . 3 5 . 1 7 Investigation 18 | . . . . . . 1 1 . . 8 3 1 . . . . 1 2 . . 1 Extermination 9 | . . . . . . 1 . . . . 1 1 . . . . . 1 . 1 4 Reinforcement 24 | . 1 2 4 . . . . . . 3 1 7 . . . . 2 2 . . 2 Assault . | . . . . . . . . . . . . . . . . . . . . . . Garrison 3 | . . . . . . . . . . 3 . . . . . . . . . . . Intercept . | . . . . . . . . . . . . . . . . . . . . . . Searches Triggered 1 | . . . . . . . . . . . . . . . . . . . . . 1 Unchained Authorized 1 | . . . . . . . . . . . . 1 . . . . . . . . . Construction Impeded 3 | . . . . . . . . . . 1 . 1 . . . . . . . . 1 Haulers Reinforced 3 | . . . . . . . . . . . . 1 . . . . 1 . . . 1 Active Scanning Responses . | . . . . . . . . . . . . . . . . . . . . . . Cargo Convoy Interrupts . | . . . . . . . . . . . . . . . . . . . . . . Stealth | -11 -10 -9 -9 -9 -9 -6 -6 -6 -6 -6 -5 -4 -4 -4 -4 -3 -3 -3 -3 -2 -1 --------- Run | Yrd Mat Mat Sto Rec Scr Fac Ext Cet Arc Hub Fac Fac Upp Upp Zhi Pro Res Arm Lab Res Acc Distress Signals 41 | . . 1 4 . . 1 1 2 . 5 . 7 . . . . 8 5 . . 7 Communications Jammed . | . . . . . . . . . . . . . . . . . . . . . . Distress Signals . | . . . . . . . . . . . . . . . . . . . . . . Times Spotted 403 | . 2 6 26 3 29 5 40 9 11 31 36 48 12 1 . 4 28 45 . 17 50 Peak Tracking Total 36 | . 2 6 5 1 36 6 8 5 1 11 9 6 6 1 . 3 9 25 . 8 14 Tactical Retreats 37 | . . . . . 2 1 1 . . 3 6 5 . . . 1 3 5 . 1 9 Traps | -11 -10 -9 -9 -9 -9 -6 -6 -6 -6 -6 -5 -4 -4 -4 -4 -3 -3 -3 -3 -2 -1 ------- Run | Yrd Mat Mat Sto Rec Scr Fac Ext Cet Arc Hub Fac Fac Upp Upp Zhi Pro Res Arm Lab Res Acc Traps Triggered 5 | . . . . . . . . . . 2 1 . . . . . . . . . 2 Indirectly . | . . . . . . . . . . . . . . . . . . . . . . Trap Hack Attempts . | . . . . . . . . . . . . . . . . . . . . . . Triggered . | . . . . . . . . . . . . . . . . . . . . . . Disarmed . | . . . . . . . . . . . . . . . . . . . . . . Reprogrammed . | . . . . . . . . . . . . . . . . . . . . . . Reused . | . . . . . . . . . . . . . . . . . . . . . . Traps Extracted . | . . . . . . . . . . . . . . . . . . . . . . Installed . | . . . . . . . . . . . . . . . . . . . . . . Triggered . | . . . . . . . . . . . . . . . . . . . . . . Most Traps Carried 3 | . . . . . 3 . . . . . . . . . . . . . . . . Machines | -11 -10 -9 -9 -9 -9 -6 -6 -6 -6 -6 -5 -4 -4 -4 -4 -3 -3 -3 -3 -2 -1 ---------- Run | Yrd Mat Mat Sto Rec Scr Fac Ext Cet Arc Hub Fac Fac Upp Upp Zhi Pro Res Arm Lab Res Acc Machines Disabled 29 | . . . 2 . 1 . 3 . 4 9 . 1 . . . . . 5 . 2 2 Max in Single Turn 6 | . . . 1 . 1 . 1 . . 6 . . . . . . . 3 . 1 1 Garrison Access 5 | . . . 1 . . . . . . . 1 1 . . . . . . . . 2 Network Hub 4 | . . . . . . . . . . 4 . . . . . . . . . . . Machines Repaired . | . . . . . . . . . . . . . . . . . . . . . . Machines Dismantled . | . . . . . . . . . . . . . . . . . . . . . . Machines Sabotaged 3 | . . . . . . . . . . 3 . . . . . . . . . . . Overloaded Fab Kills . | . . . . . . . . . . . . . . . . . . . . . . Hacking | -11 -10 -9 -9 -9 -9 -6 -6 -6 -6 -6 -5 -4 -4 -4 -4 -3 -3 -3 -3 -2 -1 --------- Run | Yrd Mat Mat Sto Rec Scr Fac Ext Cet Arc Hub Fac Fac Upp Upp Zhi Pro Res Arm Lab Res Acc Machines Accessed 116 | . 1 1 12 10 3 6 15 1 . 8 11 11 1 1 4 . 6 8 . 6 11 Terminals 70 | . 1 1 9 6 . 3 14 1 . 8 5 5 . 1 . . 5 3 . 2 6 Fabricators 14 | . . . . . . 2 . . . . 3 3 . . . . . 4 . 1 1 Repair Stations 1 | . . . . . . . . . . . . . . . . . . . . 1 . Recycling Units 13 | . . . 2 4 . . 1 . . . 1 1 . . . . . 1 . 1 2 Scanalyzers 4 | . . . . . . . . . . . 1 1 . . . . 1 . . 1 . Garrison Access 6 | . . . 1 . . 1 . . . . 1 1 . . . . . . . . 2 Total Hacks 411 | . 2 4 28 32 14 17 39 1 . 10 54 38 1 5 17 . 30 35 . 20 64 Successful 243 | . . 2 16 24 14 8 17 . . 8 36 17 1 5 17 . 22 21 . 13 22 Failed 164 | . 2 2 12 8 . 9 22 1 . 2 18 20 . . . . 6 14 . 6 42 Catastrophic 33 | . 2 . 1 . . 3 4 1 . . 1 8 . . . . . 2 . 2 9 Database Lockouts 4 | . . . . . . . . . . . . 1 . . . . 2 . . 1 . Manual 165 | . 2 4 12 28 . 4 15 1 . 10 31 24 . . . . 13 12 . 4 5 Terminals 275 | . 2 4 22 23 . 9 38 1 . 10 42 23 . 5 . . 28 20 . 5 43 Fabricators 47 | . . . . . . 5 . . . . 6 11 . . . . . 14 . 6 5 Repair Stations 1 | . . . . . . . . . . . . . . . . . . . . 1 . Recycling Units 31 | . . . 3 9 . . 1 . . . 1 1 . . . . . 1 . 6 9 Scanalyzers 10 | . . . . . . . . . . . 4 2 . . . . 2 . . 2 . Garrison Access 15 | . . . 3 . . 3 . . . . 1 1 . . . . . . . . 7 Terminal Hacks 131 | . . . 8 5 14 2 9 . . . 24 4 1 5 17 . 17 9 . 2 14 Record 16 | . . . . . 4 . . . . . . . . 5 5 . 2 . . . . Part Schematic 8 | . . . . . . . 1 . . . 2 . . . 4 . 1 . . . . Robot Analysis 17 | . . . . . 9 . 1 . . . . . . . 4 . 1 1 . . 1 Prototype ID Bank 6 | . . . . . . . 1 . . . . . . . 4 . 1 . . . . Open Door 11 | . . . 5 . . . 4 . . . . . 1 . . . . . . . 1 Open DSF 1 | . . . . . . . . . . . . 1 . . . . . . . . . Level Access Points 5 | . . . . . . . . . . . 1 1 . . . . . 1 . 1 1 Branch Access Points 5 | . . . . . . 1 . . . . 1 1 . . . . 1 . . . 1 Terminal Index 4 | . . . 1 1 . . . . . . . . . . . . 1 1 . . . Fabricator Index 4 | . . . . . . . . . . . 1 . . . . . 1 1 . . 1 Recycling Unit Index 2 | . . . . . . . . . . . . . . . . . 1 . . . 1 Alert Level 3 | . . . . . . . . . . . 1 . . . . . 1 . . . 1 Unreport Threat 5 | . . . . . . . . . . . 2 . . . . . . 2 . . 1 Locate Traps 6 | . . . . . . . 1 . . . 2 . . . . . 2 1 . . . Surveillance Status 1 | . . . . . . . . . . . . . . . . . . 1 . . . Recall Investigation 5 | . . . . . . . . . . . 4 . . . . . . . . . 1 Recall Extermination 1 | . . . . . . . . . . . 1 . . . . . . . . . . Recall Reinforcements 4 | . . . . . . . . . . . 1 . . . . . 1 . . . 2 Recall Assault 1 | . . . . . . . . . . . . . . . . . . . . . 1 Hauler Manifests 3 | . . . . . . . 1 . . . 1 . . . . . . . . . 1 Registered Components 6 | . . . . 1 . . . . . . 2 1 . . . . 2 . . . . Registered Prototypes 2 | . . . . . . . . . . . 1 . . . . . 1 . . . . Zone Layout 14 | . . . 2 3 . 1 . . . . 4 . . . . . 1 1 . 1 1 Proto ID Catalog 1 | . . . . . 1 . . . . . . . . . . . . . . . . Fabricator Hacks 26 | . . . . . . 4 . . . . 4 6 . . . . . 8 . 2 2 Network Status 2 | . . . . . . 1 . . . . . . . . . . . 1 . . . Load Schematic 14 | . . . . . . 2 . . . . 3 3 . . . . . 4 . 1 1 Build 10 | . . . . . . 1 . . . . 1 3 . . . . . 3 . 1 1 Repair Station Hacks 1 | . . . . . . . . . . . . . . . . . . . . 1 . Refit 1 | . . . . . . . . . . . . . . . . . . . . 1 . Recycling Unit Hacks 18 | . . . 2 4 . . 1 . . . 1 1 . . . . . 1 . 5 3 Recycle Component 1 | . . . . . . . . . . . . . . . . . . . . 1 . Process 1 | . . . . . . . . . . . . . . . . . . . . 1 . Retrieve Matter 2 | . . . . . . . . . . . . . . . . . . . . 2 . Retrieve Components 14 | . . . 2 4 . . 1 . . . 1 1 . . . . . 1 . 1 3 Scanalyzer 7 | . . . . . . . . . . . 4 1 . . . . 1 . . 1 . Retrieve Study 7 | . . . . . . . . . . . 4 1 . . . . 1 . . 1 . Garrison Access Hacks 5 | . . . 1 . . . . . . . 1 1 . . . . . . . . 2 Seal Access 5 | . . . 1 . . . . . . . 1 1 . . . . . . . . 2 Unauthorized Hacks 55 | . . 2 5 15 . 2 7 . . 8 2 4 . . . . 4 3 . 2 1 Terminals 39 | . . 2 5 11 . 1 7 . . 8 . 1 . . . . 4 . . . . Assimilate 5 | . . . . . . . . . . . . 1 . . . . 4 . . . . Botnet 9 | . . 1 2 5 . . 1 . . . . . . . . . . . . . . Skim 17 | . . 1 3 6 . 1 6 . . . . . . . . . . . . . . Sabotage 8 | . . . . . . . . . . 8 . . . . . . . . . . . Fabricators 11 | . . . . . . 1 . . . . 2 3 . . . . . 3 . 2 . Prioritize 5 | . . . . . . . . . . . . 2 . . . . . 2 . 1 . Liberate 2 | . . . . . . . . . . . . 1 . . . . . . . 1 . Recompile 4 | . . . . . . 1 . . . . 2 . . . . . . 1 . . . Repair Stations . | . . . . . . . . . . . . . . . . . . . . . . Recycling Units 5 | . . . . 4 . . . . . . . . . . . . . . . . 1 Recyclers 1 | . . . . . . . . . . . . . . . . . . . . . 1 Tunnel 4 | . . . . 4 . . . . . . . . . . . . . . . . . Scanalyzers . | . . . . . . . . . . . . . . . . . . . . . . Garrison Access . | . . . . . . . . . . . . . . . . . . . . . . Data Cores Recovered 4 | . . . . . . 1 . . . . 1 . . . . . 1 . . . 1 Used . | . . . . . . . . . . . . . . . . . . . . . . Hacking Detections 67 | . 1 1 4 5 . 4 13 1 . 1 8 7 . 1 . . 6 5 . 3 7 Full Trace Events 4 | . . . . . . . 1 . . . 1 1 . . . . . 1 . . . Feedback Events . | . . . . . . . . . . . . . . . . . . . . . . Feedback Blocked . | . . . . . . . . . . . . . . . . . . . . . . Robot Schematics Acquired . | . . . . . . . . . . . . . . . . . . . . . . Robots Built . | . . . . . . . . . . . . . . . . . . . . . . Authchips . | . . . . . . . . . . . . . . . . . . . . . . Time . | . . . . . . . . . . . . . . . . . . . . . . Total Robot Build Rating . | . . . . . . . . . . . . . . . . . . . . . . Part Schematics Acquired 9 | . . . . . 1 . 1 . . . 2 . . . 4 . 1 . . . . Parts Built 9 | . . . . . . 1 . . . . 1 4 . . . . . 1 . 1 1 Authchips 7 | . . . . . . 1 . . . . . 2 . . . . . 2 . 1 1 Time 616 | . . . . . . 76 . . . . 50 152 . . . . . 188 . 76 74 Total Part Build Rating 57 | . . . . . . 5 . . . . 5 26 . . . . . 7 . 5 9 Part Studies Acquired 7 | . . . . . . . . . . . 4 1 . . . . 1 . . 1 . Parts Repaired . | . . . . . . . . . . . . . . . . . . . . . . Time . | . . . . . . . . . . . . . . . . . . . . . . Parts Recycled 1 | . . . . . . . . . . . . . . . . . . . . 1 . Recycled Matter 5 | . . . . . . . . . . . . . . . . . . . . 5 . Retrieved Matter 5 | . . . . . . . . . . . . . . . . . . . . 5 . Retrieved Components 49 | . . . 18 9 . . 8 . . . 4 1 . . . . . 1 . 1 7 Parts Scanalyzed . | . . . . . . . . . . . . . . . . . . . . . . Part Schematics Acquired . | . . . . . . . . . . . . . . . . . . . . . . Parts Damaged . | . . . . . . . . . . . . . . . . . . . . . . Bothacking | -11 -10 -9 -9 -9 -9 -6 -6 -6 -6 -6 -5 -4 -4 -4 -4 -3 -3 -3 -3 -2 -1 ------------ Run | Yrd Mat Mat Sto Rec Scr Fac Ext Cet Arc Hub Fac Fac Upp Upp Zhi Pro Res Arm Lab Res Acc Used RIF Installer . | . . . . . . . . . . . . . . . . . . . . . . Robots Hacked 2 | . . . . . . . . . . . . 1 . . . . . 1 . . . Non-combat . | . . . . . . . . . . . . . . . . . . . . . . Combat 2 | . . . . . . . . . . . . 1 . . . . . 1 . . . Robot Hacks Applied 2 | . . . . . . . . . . . . 1 . . . . . 1 . . . parse_system 2 | . . . . . . . . . . . . 1 . . . . . 1 . . . Relay Couplers Released . | . . . . . . . . . . . . . . . . . . . . . . Fabnet Peak Effective % . | . . . . . . . . . . . . . . . . . . . . . . Robots Rewired 22 | . . . . . . . 17 . . . . . 2 . . . . 3 . . . Allies Hacked 5 | . . . . . . . . . . . 1 2 . . . . . . . . 2 Hacks Repelled . | . . . . . . . . . . . . . . . . . . . . . . Allies | -11 -10 -9 -9 -9 -9 -6 -6 -6 -6 -6 -5 -4 -4 -4 -4 -3 -3 -3 -3 -2 -1 -------- Run | Yrd Mat Mat Sto Rec Scr Fac Ext Cet Arc Hub Fac Fac Upp Upp Zhi Pro Res Arm Lab Res Acc Total Allies 130 | . . . 10 . . 3 31 5 . 7 3 44 2 . . . 9 3 . . 13 Largest Group 32 | . . . 10 1 1 3 32 31 27 28 3 23 5 2 . . 8 5 . . 3 Highest-Rated Group 1201 | . . . 88 8 8 30 888 1201 1122 1003 30 241 117 98 . . 131 192 . . 30 Highest-Rated Ally 159 | . . . 16 8 8 10 159 159 143 96 10 30 49 49 . . 45 47 . . 10 Total Orders 22 | . . . 21 . 1 . . . . . . . . . . . . . . . . STAY 1 | . . . . . 1 . . . . . . . . . . . . . . . . ROAM 1 | . . . 1 . . . . . . . . . . . . . . . . . . EXPLORE 20 | . . . 20 . . . . . . . . . . . . . . . . . . Ally Attacks 1275 | . . . 144 7 . 1 188 93 30 207 31 349 68 4 . . 31 51 . . 71 Total Damage 20820 | . . . 1410 75 . . 2935 1992 1165 5094 424 4195 998 104 . . 440 1118 . . 870 Kills 187 | . . . 21 . . . 35 10 3 38 7 45 9 . . . 7 3 . . 9 Allies Corrupted 8 | . . . . . . . . . . 3 . 3 . . . . 1 . . . 1 Allies Melted 1 | . . . . . . . . . . 1 . . . . . . . . . . . Intel | -11 -10 -9 -9 -9 -9 -6 -6 -6 -6 -6 -5 -4 -4 -4 -4 -3 -3 -3 -3 -2 -1 ------- Run | Yrd Mat Mat Sto Rec Scr Fac Ext Cet Arc Hub Fac Fac Upp Upp Zhi Pro Res Arm Lab Res Acc Active Infowar (turns) 3426 | . . 1 . . . . 1106 629 603 238 38 . . . . . 151 246 . . 414 Sensors 345 | . . . . . . . . . . . . . . . . . . . . . 345 IFF 1006 | . . . . . . . 609 . . . . . . . . . 151 246 . . . Terrain 156 | . . . . . . . . . . . . . . . . . . . . . 156 Structural 1 | . . 1 . . . . . . . . . . . . . . . . . . . Machine Analysis 2168 | . . . . . . . 660 629 603 238 38 . . . . . . . . . . ECM 1 | . . . . . . . . . . . . . . . . . . . . . 1 Robot Analysis Total 17 | . . . . . 9 . 1 . . . . . . . 4 . 1 1 . . 1 Derelict Logs Recovered 3 | . . . . . . . . . . . . . 2 1 . . . . . . . Drone Launches 43 | . . . 41 . . . . . . . . . . . . . . 2 . . . Drone Recoveries 25 | . . . 25 . . . . . . . . . . . . . . . . . . Exploration | -11 -10 -9 -9 -9 -9 -6 -6 -6 -6 -6 -5 -4 -4 -4 -4 -3 -3 -3 -3 -2 -1 ------------- Run | Yrd Mat Mat Sto Rec Scr Fac Ext Cet Arc Hub Fac Fac Upp Upp Zhi Pro Res Arm Lab Res Acc Turns Passed 11937 | 45 42 96 1115 1137 2232 257 1213 629 603 238 430 842 411 369 81 49 524 314 14 475 821 Spaces Moved 13087 | 45 81 183 722 607 1514 499 1297 196 396 491 1165 1531 509 444 154 157 1047 631 15 272 1131 Core 662 | 31 81 183 26 . . . . . . 11 . . . . . . . . . 17 313 Treads 247 | . . . . . . . . . . . . . . . . . . . 15 232 . Legs 2287 | 14 . . 696 607 882 . . . . . . . . . . . . . . . 88 Wheels . | . . . . . . . . . . . . . . . . . . . . . . Hover 415 | . . . . . . . . . . . 107 . . . 57 157 94 . . . . Flight 9476 | . . . . . 632 499 1297 196 396 480 1058 1531 509 444 97 . 953 631 . 23 730 Fastest Speed 20 | 50 50 50 50 120 34 31 25 25 25 25 22 20 20 20 24 30 28 32 70 45 33 Average Speed 58 | 71 50 50 124 176 142 33 27 25 39 31 31 23 20 41 31 30 32 34 70 105 48 Slowest Speed 330 | 120 50 50 190 260 330 37 108 25 103 115 60 29 20 88 150 30 200 120 70 160 300 Overloaded Moves 261 | . . . . . . . . . . . 40 3 . . 2 157 59 . . . . Propulsion Burnouts . | . . . . . . . . . . . . . . . . . . . . . . Robots Hopped 47 | . . . . . . 1 4 1 . . 8 23 1 . . . 3 6 . . . Potential Cave-ins . | . . . . . . . . . . . . . . . . . . . . . . Cave-ins Triggered . | . . . . . . . . . . . . . . . . . . . . . . Teleports 1 | . . . . . . . . . . . . . . . . . . 1 . . . Exploration Rate (%) 43 | 4 21 21 94 97 80 11 82 56 84 54 30 25 55 48 60 36 17 42 6 9 33 Regions Visited 21 Branch Regions 13 Pre-discovered Areas 12 | . . . . 7 . . 2 . . . . . . . 3 . . . . . . Known Exits Taken 10 | . . . . 1 . 1 1 . . 1 1 1 . . . 1 1 . 1 1 . Unknown Exits Taken 11 | 1 1 1 1 . 1 . . 1 1 . . . 1 1 1 . . 1 . . . Scrap Searched 12 | . . . . . 8 . . . . . . . 2 1 . 1 . . . . . Spaces Dug 62 | . . . . . 2 4 . 4 . 7 . . 35 . . . . 1 . 2 7 Terrain Destroyed 284 | . . . . . 2 4 . 4 . 154 . . 35 . . . . 6 . 71 8 Melee 24 | . . . . . 2 4 . 4 . 7 . . . . . . . . . . 7 Projectile 10 | . . . . . . . . . . . . . . . . . . 2 . 7 1 AOE 250 | . . . . . . . . . . 147 . . 35 . . . . 4 . 64 . Terrain Rammed . | . . . . . . . . . . . . . . . . . . . . . . Walls Destroyed . | . . . . . . . . . . . . . . . . . . . . . . Machines Disabled . | . . . . . . . . . . . . . . . . . . . . . . Actions | -11 -10 -9 -9 -9 -9 -6 -6 -6 -6 -6 -5 -4 -4 -4 -4 -3 -3 -3 -3 -2 -1 --------- Run | Yrd Mat Mat Sto Rec Scr Fac Ext Cet Arc Hub Fac Fac Upp Upp Zhi Pro Res Arm Lab Res Acc Total 16652 | 59 81 187 865 644 1588 574 2026 765 796 550 1228 1888 768 611 185 158 1206 721 18 416 1318 Wait 2377 | . . . 61 8 21 56 501 552 340 2 12 213 208 157 7 2 100 30 . 59 48 Move 12980 | 44 80 182 721 606 1513 496 1290 193 395 490 1148 1489 506 443 153 156 1040 620 14 271 1130 Hop 38 | . . . . . . 1 2 1 . . 8 18 1 . . . 3 4 . . . Pick Up 158 | 7 1 3 12 7 8 6 11 3 9 1 17 17 1 1 2 . 15 7 . 10 20 Fast Attach 107 | . . . 6 2 12 . 14 3 5 5 4 17 . . 10 . 4 3 . . 22 Attach 118 | 4 . 1 4 . 4 7 8 . 4 1 11 12 . . 2 . 8 15 4 12 21 Detach 30 | 2 . . . . 1 1 1 . . . . 3 . . . . 6 9 . 5 2 Swap 30 | . . . 3 2 5 . 5 2 . . 1 3 3 . . . 3 2 . . 1 Drop 156 | 2 . 1 9 2 21 . 15 5 12 3 13 24 2 1 11 . 8 6 . 12 9 Fire 223 | . . . . . . . . . . . . 91 43 9 . . 19 8 . 47 6 Melee 228 | . . . 41 17 3 7 66 6 31 16 . 1 . . . . . . . . 40 Ram 5 | . . . . . . . . . . 2 . . . . . . . . . . 3 Kick 17 | . . . 1 . . . . . . . . . . . . . . . . . 16 Crush . | . . . . . . . . . . . . . . . . . . . . . . Escape Stasis 44 | . . . . . . . . . . 30 14 . . . . . . . . . . Rewire 134 | . . . . . . . 113 . . . . . 4 . . . . 17 . . . Trap . | . . . . . . . . . . . . . . . . . . . . . . Miscellaneous 7 | . . . 7 . . . . . . . . . . . . . . . . . . Route ------- -11/Scrapyard -10/Materials -9/Materials (discovered 2 exits: [*Mat] / *Sto) -9/Storage (discovered 2 exits: [*Mat] / *Rec) -9/Recycling (discovered 2 exits: [*Fac] / *Scr) -9/Scraptown -6/Factory (discovered 5 exits: *Fac / Low x2 / *Ext x2) -6/Extension (discovered 3 exits: *Fac x2 / *Cet) -6/Cetus (discovered 2 exits: *Fac / [*Arc]) -6/Archives (discovered 3 exits: *Fac / *Hub x2) -6/Hub_04(d) -5/Factory (discovered 6 exits: *Fac x4 / Upp x2) -4/Factory (discovered 6 exits: Res x4 / *Upp x2) -4/Upper Caves -4/Upper Caves -4/Zhirov -3/Proximity Caves -3/Research (discovered 4 exits: Res / *Arm / Qua x2) -3/Armory (discovered 3 exits: Res x2 / *Lab) -3/Lab -2/Research (discovered 4 exits: *Acc x3 / Tes) -1/Access (discovered 2 exits: *Sur / Com) To Epsilon Eridani History --------- Turn | Location | Event 3 | -11/Scrapyard | Discovered new exit (range 16) 46 | -11/Scrapyard | Entered Materials 64 | -10/Materials | Discovered new exit (range 16) 88 | -10/Materials | Entered another Materials area 88 | -9/Materials | Evolved 2 slots: Utility x2 178 | -9/Materials | Discovered new exit (range 3) 179 | -9/Materials | Discovered new exit (range 7) 184 | -9/Materials | Entered Storage 280 | -9/Storage | Assisted by bots powering up and referring to "LRC-V3" 311 | -9/Storage | Lost 9 allies 332 | -9/Storage | Discovered new exit (range 44) 429 | -9/Storage | Lost 6 allies 565 | -9/Storage | Used back door to open Recycling access 565 | -9/Storage | Discovered new exit (range 5) 577 | -9/Storage | Build established: Commander-Mutant 935 | -9/Storage | Build established: Mutant 1299 | -9/Storage | Entered Recycling 1299 | -9/Recycling | Accompanied by 1 ally 1649 | -9/Recycling | Discovered new exit (range 16) 1925 | -9/Recycling | Learned Storage interactive machine intel 1978 | -9/Recycling | Identified exit to Scraptown 2058 | -9/Recycling | Learned location of 1 exit from Storage 2082 | -9/Recycling | Learned location of Mines (-8) 2098 | -9/Recycling | Learned 2 Materials zone layouts 2102 | -9/Recycling | Learned 8 Materials zone layouts 2115 | -9/Recycling | Learned Materials trap positions 2138 | -9/Recycling | Learned Storage garrison access intel 2172 | -9/Recycling | Learned location of Zion (-7) 2217 | -9/Recycling | Learned Storage interactive machine intel 2367 | -9/Recycling | Scanned before Scraplab entrance 2406 | -9/Recycling | Entered Scraplab 2436 | -9/Recycling | Entered Scraptown 2436 | -9/Scraptown | Accompanied by 1 ally 2586 | -9/Scraptown | Visited Cyclists 2632 | -9/Scraptown | Visited Comm Corps 2648 | -9/Scraptown | Visited Awakened 2723 | -9/Scraptown | Visited Bundlers 2883 | -9/Scraptown | Visited IN-MT5's Study 2910 | -9/Scraptown | Visited Symbiants 3472 | -9/Scraptown | Visited UFD Registry 3472 | -9/Scraptown | Registered with UFD as "Gammabrain" 3540 | -9/Scraptown | Visited DA-N13 Charitable Foundation 3548 | -9/Scraptown | Found DCF Scrap (28 items) 3594 | -9/Scraptown | Visited Botcube Research 3616 | -9/Scraptown | Visited Junk Repository 3666 | -9/Scraptown | Visited Analyses Database 3706 | -9/Scraptown | Visited Scrapoid Pod Storage 3723 | -9/Scraptown | Visited Science Guys 3792 | -9/Scraptown | Visited Junk Repository 3846 | -9/Scraptown | Visited Abandonware Association 3868 | -9/Scraptown | Learned abandonware demo "POISON.EXE" 3868 | -9/Scraptown | Learned abandonware demo "KABOOM.EXE" 3872 | -9/Scraptown | Learned abandonware demo "OVRCLOCK.EXE" 3916 | -9/Scraptown | Visited Supply Room 4123 | -9/Scraptown | Discovered new exit (range 11) 4534 | -9/Scraptown | Found Botcube 4630 | -9/Scraptown | Attacked by Scraptown defenders 4640 | -9/Scraptown | Core integrity fell below 50% 4643 | -9/Scraptown | Visited Red Mages 4667 | -9/Scraptown | Core integrity fell below 20% 4668 | -9/Scraptown | Entered Factory 4668 | -6/Factory | Evolved 6 slots: Propulsion x3, Utility x3 4694 | -6/Factory | Lost 3 parts (1n2u) 4725 | -6/Factory | Identified exit to Lower Caves 4725 | -6/Factory | Identified exit to Extension 4725 | -6/Factory | Discovered new exit (range 16) 4758 | -6/Factory | Fabricated IN-MT5's Pitchfork "Insurrection" (x1) 4771 | -6/Factory | Reprogrammed and armed K-01 Serf 4787 | -6/Factory | Reprogrammed and armed K-01 Serf 4827 | -6/Factory | Reprogrammed and armed K-01 Serf 4925 | -6/Factory | Entered Extension 4925 | -6/Extension | Accompanied by 3 allies 4937 | -6/Extension | Reprogrammed and armed K-01 Serf 4941 | -6/Extension | Reprogrammed and armed K-01 Serf 5088 | -6/Extension | Rescued a captive Derelict 5091 | -6/Extension | Rescued a captive Derelict 5099 | -6/Extension | Rescued a captive Derelict 5194 | -6/Extension | Rescued A7 5308 | -6/Extension | Reprogrammed and armed K-01 Serf 5351 | -6/Extension | Reprogrammed and armed K-01 Serf 5365 | -6/Extension | Reprogrammed and armed K-01 Serf 5365 | -6/Extension | Reprogrammed and armed K-01 Serf 5450 | -6/Extension | Disrupted transfer network 5541 | -6/Extension | Spotted B-75 Beast 5545 | -6/Extension | Reprogrammed and armed K-01 Serf 5552 | -6/Extension | Allies destroyed B-75 Beast 5559 | -6/Extension | Spotted B-75 Beast 5577 | -6/Extension | Allies destroyed B-75 Beast 5602 | -6/Extension | Rescued a captive Derelict 5603 | -6/Extension | Rescued a captive Derelict 5669 | -6/Extension | System corruption reached 10% 5675 | -6/Extension | Lost 5 parts (3n2u) 5746 | -6/Extension | Learned location of Proximity Caves (-6) 5750 | -6/Extension | Rescued a captive Derelict 5804 | -6/Extension | Learned 4 Lower Caves zone layouts 5853 | -6/Extension | Identified exit to Factory 5894 | -6/Extension | Learned location of 1 exit from Hub_04(d) 5925 | -6/Extension | Learned 4 Lower Caves zone layouts 5946 | -6/Extension | Loaded intel: 8 trap records 5959 | -6/Extension | Learned Factory emergency access door positions 5984 | -6/Extension | Learned location of Warlord (-5) 6019 | -6/Extension | Discovered new exit (range 6) 6024 | -6/Extension | Identified exit to Cetus 6063 | -6/Extension | Learned Factory security intel 6138 | -6/Extension | Entered Cetus 6138 | -6/Cetus | Accompanied by 31 allies (A7) 6143 | -6/Cetus | Acquired a Cetus Manufacturing Module code from A7 6163 | -6/Cetus | Spotted Cetus Guard 6163 | -6/Cetus | Spotted Cetus Guard 6164 | -6/Cetus | Spotted Cetus Guard 6168 | -6/Cetus | Spotted Cetus Guard 6177 | -6/Cetus | Build established: Commander-Sprinter 6181 | -6/Cetus | Allies destroyed Cetus Guard 6183 | -6/Cetus | Allies destroyed Cetus Guard 6185 | -6/Cetus | Allies destroyed Cetus Guard 6188 | -6/Cetus | Allies destroyed Cetus Guard 6211 | -6/Cetus | Lost 6 allies 6221 | -6/Cetus | Started Cetus Manufacturing Module 6246 | -6/Cetus | Manufactured an Enhanced Grunt 6271 | -6/Cetus | Manufactured an Enhanced Grunt 6296 | -6/Cetus | Manufactured an Enhanced Grunt 6321 | -6/Cetus | Manufactured an Enhanced Grunt 6338 | -6/Cetus | Discovered new exit (range 15) 6346 | -6/Cetus | Manufactured an Enhanced Grunt 6432 | -6/Cetus | Spotted Cetus Guard 6432 | -6/Cetus | Spotted Cetus Guard 6432 | -6/Cetus | Spotted Cetus Guard 6432 | -6/Cetus | Spotted Cetus Guard 6439 | -6/Cetus | Allies destroyed Cetus Guard 6441 | -6/Cetus | Allies destroyed Cetus Guard 6453 | -6/Cetus | Allies destroyed Cetus Guard 6456 | -6/Cetus | Allies destroyed Cetus Guard 6459 | -6/Cetus | Met Revision 17 6767 | -6/Cetus | Entered Archives 6767 | -6/Archives | Accompanied by 27 allies (A7) 6808 | -6/Archives | Discovered new exit (range 14) 6932 | -6/Archives | Discovered new exit (range 14) 6957 | -6/Archives | Discovered exit to Factory (range 14) 7370 | -6/Archives | Entered Hub_04(d) 7370 | -6/Hub_04(d) | Accompanied by 25 allies 7382 | -6/Hub_04(d) | Network Hub disabled 7385 | -6/Hub_04(d) | Network Hub disabled 7393 | -6/Hub_04(d) | Garrison activated, responded to threat 7395 | -6/Hub_04(d) | Reprogrammed and armed K-01 Serf 7398 | -6/Hub_04(d) | Reprogrammed and armed K-01 Serf 7402 | -6/Hub_04(d) | Reprogrammed and armed K-01 Serf 7411 | -6/Hub_04(d) | Spotted Lightning 7413 | -6/Hub_04(d) | Spotted Lightning 7416 | -6/Hub_04(d) | Reprogrammed and armed K-01 Serf 7482 | -6/Hub_04(d) | Network Hub disabled 7506 | -6/Hub_04(d) | Reprogrammed and armed K-01 Serf 7509 | -6/Hub_04(d) | Spotted Lightning 7527 | -6/Hub_04(d) | Lost 8 allies 7528 | -6/Hub_04(d) | Spotted Lightning 7528 | -6/Hub_04(d) | Spotted Lightning 7531 | -6/Hub_04(d) | Network Hub disabled 7538 | -6/Hub_04(d) | Core integrity fell below 50% 7558 | -6/Hub_04(d) | Found Prototype Processor 7558 | -6/Hub_04(d) | Identified Exp. Targeting Computer 7568 | -6/Hub_04(d) | Reprogrammed and armed K-01 Serf 7572 | -6/Hub_04(d) | Lost 5 parts (3n1u1w) 7600 | -6/Hub_04(d) | Core integrity fell below 20% 7600 | -6/Hub_04(d) | Reprogrammed and armed K-01 Serf 7608 | -6/Hub_04(d) | Entered Factory 7608 | -5/Factory | Evolved 2 slots: Propulsion x1, Utility x1 7647 | -5/Factory | System corruption reached 10% 7665 | -5/Factory | Found Quantum Capacitor 7677 | -5/Factory | Lost 5 parts (5u) 7699 | -5/Factory | Reprogrammed and armed K-01 Serf 7721 | -5/Factory | Reprogrammed and armed K-01 Serf 7721 | -5/Factory | Reprogrammed and armed K-01 Serf 7745 | -5/Factory | Identified exit to Factory 7781 | -5/Factory | Identified exit to Upper Caves 7885 | -5/Factory | Fabricated IN-MT5's Pitchfork "Insurrection" (x1) 8038 | -5/Factory | Entered another Factory area 8038 | -4/Factory | Evolved 2 slots: Propulsion x1, Utility x1 8039 | -4/Factory | Identified exit to DSF 8045 | -4/Factory | Build established: Wizard-Sprinter 8049 | -4/Factory | Spotted B-86 Titan 8064 | -4/Factory | Reprogrammed and armed K-01 Serf 8095 | -4/Factory | Fabricated IN-MT5's Pitchfork "Insurrection" (x1) 8128 | -4/Factory | Central database locked down 8137 | -4/Factory | Reprogrammed and armed K-01 Serf 8141 | -4/Factory | Reprogrammed and armed K-01 Serf 8172 | -4/Factory | Spotted B-86 Titan 8186 | -4/Factory | Reprogrammed and armed K-01 Serf 8248 | -4/Factory | Fabricated Q-thruster (x2) 8271 | -4/Factory | Reprogrammed and armed K-01 Serf 8271 | -4/Factory | Reprogrammed and armed K-01 Serf 8272 | -4/Factory | Reprogrammed and armed K-01 Serf 8273 | -4/Factory | Reprogrammed and armed K-01 Serf 8274 | -4/Factory | Reprogrammed and armed K-01 Serf 8274 | -4/Factory | Reprogrammed and armed K-01 Serf 8275 | -4/Factory | Reprogrammed and armed K-01 Serf 8276 | -4/Factory | Reprogrammed and armed K-01 Serf 8276 | -4/Factory | Reprogrammed and armed K-01 Serf 8280 | -4/Factory | Reprogrammed and armed K-01 Serf 8281 | -4/Factory | Reprogrammed and armed K-01 Serf 8301 | -4/Factory | Reprogrammed and armed K-01 Serf 8305 | -4/Factory | Reprogrammed and armed K-01 Serf 8332 | -4/Factory | Reprogrammed and armed K-01 Serf 8336 | -4/Factory | Reprogrammed and armed K-01 Serf 8337 | -4/Factory | Reprogrammed and armed K-01 Serf 8337 | -4/Factory | Reprogrammed and armed K-01 Serf 8338 | -4/Factory | Reprogrammed and armed K-01 Serf 8338 | -4/Factory | Reprogrammed and armed K-01 Serf 8338 | -4/Factory | Reprogrammed and armed K-01 Serf 8340 | -4/Factory | Reprogrammed and armed K-01 Serf 8341 | -4/Factory | Reprogrammed and armed K-01 Serf 8347 | -4/Factory | Reprogrammed and armed K-01 Serf 8347 | -4/Factory | Reprogrammed and armed K-01 Serf 8350 | -4/Factory | Identified exit to Research 8350 | -4/Factory | Identified exit to Upper Caves 8373 | -4/Factory | Reprogrammed and armed K-01 Serf 8373 | -4/Factory | Reprogrammed and armed K-01 Serf 8412 | -4/Factory | Build established: Hacker-Sprinter 8426 | -4/Factory | Unchained authorized (DW-4LL) 8448 | -4/Factory | Reprogrammed and armed K-01 Serf 8541 | -4/Factory | Reprogrammed and armed K-01 Serf 8542 | -4/Factory | Reprogrammed and armed K-01 Serf 8554 | -4/Factory | Reprogrammed and armed K-01 Serf 8573 | -4/Factory | Reprogrammed and armed K-01 Serf 8573 | -4/Factory | Reprogrammed and armed K-01 Serf 8594 | -4/Factory | Lost 18 allies 8594 | -4/Factory | Reprogrammed and armed K-01 Serf 8596 | -4/Factory | Reprogrammed and armed K-01 Serf 8596 | -4/Factory | Reprogrammed and armed K-01 Serf 8632 | -4/Factory | DW-4LL burst out of a wall 8646 | -4/Factory | Allies destroyed DW-4LL 8658 | -4/Factory | Reprogrammed and armed K-01 Serf 8661 | -4/Factory | Found DW-4LL's Megashotty 8663 | -4/Factory | Found DW-4LL's Griptreads 8691 | -4/Factory | Lost 5 allies 8802 | -4/Factory | Build established: Scavenger-Sprinter 8814 | -4/Factory | Fabricated IN-MT5's Pitchfork "Insurrection" (x1) 8819 | -4/Factory | Reprogrammed and armed K-01 Serf 8880 | -4/Factory | Entered Upper Caves 8880 | -4/Upper Caves | Accompanied by 5 allies 8880 | -4/Upper Caves | Spotted B-86 Titan 8896 | -4/Upper Caves | Attracted the attention of an 0b10 outpost 8902 | -4/Upper Caves | Allies destroyed B-86 Titan 8938 | -4/Upper Caves | Lost 3 allies 9041 | -4/Upper Caves | Attracted the attention of an 0b10 checkpoint 9181 | -4/Upper Caves | Learned Research trap positions 9222 | -4/Upper Caves | Discovered new exit (range 14) 9291 | -4/Upper Caves | Entered another Upper Caves area 9291 | -4/Upper Caves | Accompanied by 2 allies 9355 | -4/Upper Caves | Encountered a Warlord checkpoint 9356 | -4/Upper Caves | Learned 4 Research zone layouts 9416 | -4/Upper Caves | Learned Extension security intel 9416 | -4/Upper Caves | Learned 6 Lower Caves zone layouts 9416 | -4/Upper Caves | Learned location of 1 exit from Proximity Caves 9426 | -4/Upper Caves | Attracted the attention of an 0b10 checkpoint 9558 | -4/Upper Caves | Discovered new exit (range 9) 9660 | -4/Upper Caves | Entered Zhirov 9661 | -4/Zhirov | Discovered new exit (range 3) 9666 | -4/Zhirov | Met Zhirov 9671 | -4/Zhirov | Learned location of Quarantine (-3) 9671 | -4/Zhirov | Learned location of Testing (-2) 9671 | -4/Zhirov | Learned location of Command (-1) 9673 | -4/Zhirov | Zhirov requested help retrieving the SGEMP Prototype 9677 | -4/Zhirov | Found Alien Artifact 9677 | -4/Zhirov | Identified Integrated Dissipator 9677 | -4/Zhirov | Installed Integrated Dissipator, increased core heat dissipation (+20) 9721 | -4/Zhirov | Found Alien Artifact 9741 | -4/Zhirov | Entered Proximity Caves 9744 | -3/Proximity Caves | Spotter reported a threat 9790 | -3/Proximity Caves | Entered Research 9790 | -3/Research | Evolved 2 slots: Power x1, Utility x1 9791 | -3/Research | Identified exit to Research 9792 | -3/Research | Loaded intel: 78 trap records 9800 | -3/Research | Central database locked down 9827 | -3/Research | Identified exit to Armory 9827 | -3/Research | Identified exit to Quarantine 9940 | -3/Research | Reprogrammed and armed K-01 Serf 9943 | -3/Research | Reprogrammed and armed K-01 Serf 9945 | -3/Research | Reprogrammed and armed K-01 Serf 9983 | -3/Research | Reprogrammed and armed K-01 Serf 9984 | -3/Research | Reprogrammed and armed K-01 Serf 9990 | -3/Research | Revision forces began assault on 0b10 10004 | -3/Research | Central database locked down 10041 | -3/Research | Met up with Revision 17++ 10102 | -3/Research | Lost 5 allies 10202 | -3/Research | Murdered Revision 17++ 10235 | -3/Research | Reprogrammed and armed K-01 Serf 10314 | -3/Research | Entered Armory 10314 | -3/Armory | Accompanied by 2 allies 10424 | -3/Armory | Fabricated Assault Drone Bay (x1) 10548 | -3/Armory | Spotted B-86 Titan 10581 | -3/Armory | Identified Transdimensional Reconstructor 10581 | -3/Armory | Warped through subspace to slip node 10581 | -3/Armory | Discovered new exit (range 1) 10628 | -3/Armory | Entered Lab 10632 | -3/Lab | Discovered exit to Research (range 9) 10641 | -3/Lab | Unable to decrypt terminal 10642 | -3/Lab | Entered Research 10642 | -2/Research | Evolved 2 slots: Power x1, Utility x1 10643 | -2/Research | Identified exit to Testing 10655 | -2/Research | Lost 7 parts (5n2u) 10728 | -2/Research | Fabricated IN-MT5's Pitchfork "Insurrection"? 10787 | -2/Research | Central database locked down 10865 | -2/Research | Build established: Hacker-Mutant 10915 | -2/Research | Identified exit to Access 10934 | -2/Research | Found Prototype Processor 10938 | -2/Research | Identified Exp. Core Analyzer 11090 | -2/Research | System corruption reached 10% 11099 | -2/Research | Core integrity fell below 50% 11117 | -2/Research | Entered Access 11117 | -1/Access | Evolved 2 slots: Propulsion x1, Utility x1 11119 | -1/Access | Lost 5 parts (1p2n1u1w) 11130 | -1/Access | Reprogrammed and armed K-01 Serf 11149 | -1/Access | Reprogrammed and armed K-01 Serf 11221 | -1/Access | Reprogrammed and armed K-01 Serf 11343 | -1/Access | Fabricated Imp. Q-thruster (x1) 11401 | -1/Access | Identified exit to Command 11484 | -1/Access | Identified exit to Surface 11502 | -1/Access | Lost 7 parts (1p1n5u) 11508 | -1/Access | Reprogrammed and armed K-01 Serf 11513 | -1/Access | Reprogrammed and armed K-01 Serf 11539 | -1/Access | Reprogrammed and armed K-01 Serf 11540 | -1/Access | Reprogrammed and armed K-01 Serf 11570 | -1/Access | Lost 3 allies 11606 | -1/Access | System corruption reached 10% 11675 | -1/Access | Lost 6 parts (1n4u1w) 11728 | -1/Access | Core integrity fell below 50% 11748 | -1/Access | Reprogrammed and armed K-01 Serf 11766 | -1/Access | Lost 4 parts (2n2u) 11768 | -1/Access | Reprogrammed and armed K-01 Serf 11768 | -1/Access | Reprogrammed and armed K-01 Serf 11774 | -1/Access | Reprogrammed and armed K-01 Serf 11848 | -1/Access | Reprogrammed and armed K-01 Serf 11867 | -1/Access | Search patrols dispatched 11892 | -1/Access | Reprogrammed and armed K-01 Serf 11938 | *** | Escaped! Last Messages --------------- (Impale). 11926_ Wall collapses. 11927_ Penetrated by Slug. 11927_ Nanosword destroyed. 11928_ B-74 Champion suffers critical hit (Impale). 11928_ Penetrated by Slug. 11930_ Hacking Suite destroyed. 11930_ Penetrated by Slug. 11931_ Adv. Heavy Siege Treads destroyed. 11933_ B-74 Champion suffers critical hit (Impale). 11934_ Penetrated by Slug. 11934_ IN-MT5's Pitchfork "Insurrection" destroyed. 11935_ R-10 Processor collects Wheel. 11937_ Mic. Antimatter Reactor destroyed. 11937_ Penetrated by Slug. 11937_ Cld. Antigrav System destroyed. [Achievement: True Cogmind] Map ----- +----------------------------------------------------+ | ?????????????????????????????????????????????????? | | ?????????????????????????????????????????????????? | | ?????????????????????????????????????????????????? | | ########?????????????????????????????????????????? | | #?????????????????????????????????????????? | | #?????????????????????????????????????????? | | #?????????????????????????????????????????? | | #?????????????????????????????????????????? | | #?????????????????????????????????????????? | | #?????????????????????????????????????????? | | #####+######+############????????????????????????? | | ?????????????????????? | | =?????????????????????? | | +### ##### ###########?????????????????????????? | | ?# #???# #???????????????????????????????????? | | ?# #???# #???????????????????????????????????? | | # #???# #???????????????????????????????????? | | # #???# #???????????????????????????????????? | | # #???# #?????###???????????????????????????? | | # #???# ####### ##########??????????????????? | | # #???# """T""" "??????????????????? | | # #???# """ """ "??????????????????? | | # #???# "??????????????????? | | # #???# g "??????????????????? | | # ????# g "" "??????????????????? | | # ????#u b=@" "??????????????????? | | #### ????# "??????????????????? | | ??????????#R "??????????????????? | | ??????????# "??????????????????? | | ??????????# h "??????????????????? | | ??????????# h;###### ##########??????????????????? | | ??????????# #?????###???????????????????????????? | | ??????????# #???????????????????????????????????? | | ??????????# #???????????????????????????????????? | | ??????????# #???????????????????????????????????? | | ??????????# #???????????????????????????????????? | | ??######### #???????????????????????????????????? | | + ##############??????????????????????? | | # + #??????????????????????? | | # # #??????????????????????? | | ?# # #??????????????????????? | | ?# # "" #??????????????????????? | | """"" ? " + "" #??????????????????????? | | """"" # # """""" #??????????????????????? | | ? """"" # # """""" #??????????????????????? | | ????""" ?# # "" #??????????????????????? | | ????""" ?# # "" = #??????????????????????? | | ???? ??# # #??????????????????????? | | ??? ???# # #??????????????????????? | | ???####???# # ?? #??????????????????????? | +----------------------------------------------------+ Best States ------------- Heat Dissipation 82 Energy Generation 43 Energy Capacity 680 Matter Stores 700 Matter Capacity 700 Sight Range 16 Robot Scan Range 16 Terrain Scan Range 24 Terrain Scan Density 210 Additional Mass Support 9 Armor Coverage 450 Propulsion Shielding 66 Utility Shielding 90 Phase Shifting 10 Evasion (%) 84 Targeting Accuracy 12 Target Analysis 8 Recoil Reduction 4 Force Boost 20 Offensive Hacking 60 Defensive Hacking 28 Authchip Count 7 Trap Extractor Capacity 4 Item Schematics ----------------- IN-MT5's Pitchfork "Insurrection" | -9/Scraptown | Archive Imp. Phase Shifter | -6/Extension | Hacked Q-thruster | -5/Factory | Hacked Plasma Cannon | -5/Factory | Hacked Assault Drone Bay | -4/Zhirov | Free Exp. Heat Sink | -4/Zhirov | Free Exp. Optical Array | -4/Zhirov | Free Imp. Arc Thrower | -4/Zhirov | Free Imp. Q-thruster | -3/Research | Hacked Robot Schematics ------------------ None Fabricated ------------ IN-MT5's Pitchfork "Insurrection" | x1 | -6/Factory | Authchip IN-MT5's Pitchfork "Insurrection" | x1 | -5/Factory IN-MT5's Pitchfork "Insurrection" | x1 | -4/Factory | Authchip Q-thruster | x2 | -4/Factory IN-MT5's Pitchfork "Insurrection" | x1 | -4/Factory | Authchip Assault Drone Bay | x1 | -3/Armory | Authchip IN-MT5's Pitchfork "Insurrection" | x1 | -2/Research | Authchip Imp. Q-thruster | x1 | -1/Access | Authchip Repaired ---------- Nothing Studied --------- VTOL Module | -5/Factory | Hacked Field Propulsion Drive | -5/Factory | Hacked Nuclear Pulse Thruster | -5/Factory | Hacked Lgt. Angular Momentum Engine | -5/Factory | Hacked Field Propulsion Array | -4/Factory | Hacked Imp. Surge Thruster | -3/Research | Hacked Com. HERF Cannon | -2/Research | Hacked Alien Tech Used ----------------- Integrated Dissipator Transdimensional Reconstructor Achievements -------------- True Cogmind Challenges ------------ None Game ------ Seed VisualGuidanceSplitter Manual? 0 Play Time 02:56:22 Cumulative 688.2 hours Start 2026.02.08 @ 15:19:12 End 2026.02.09 @ 12:52:10 Sessions 12 Manual Loads 0 Difficulty Rogue Special Mode None Game No. 851 Rogue 851 Adventurer 0 Explorer 0 Win Type 0 Total 25 Types 12/1/3/3/2/0/2/2/0/0 Lore% 96 Gallery% 94 Achievement% 83 Wizard Run 0 Options --------- Layout 2 ASCII 0 Keyboard 0 Movement Mouse Keybinds 0 Fullscreen 2 Font 24/Tamsyn Map View 50x44 Zoom Use 0% Tactical HUD 1 Map Filters NONE Filters NONE Steam 1 RUN: c9de921b-4626-4f75-847a-42237045d3b9